bitfinex-derivatives/quotes_BTCF0:USTF0_20250422
["timestamp","ask_amount","ask_price","bid_price","bid_amount"]
[1745290282298,0.2620978,88199.0,88198.0,0.30554901]
[1745290282492,0.07948,88199.0,88198.0,0.45182901]
[1745290282697,0.07956,88199.0,88198.0,0.45182901]
[1745290282899,0.0324,88203.0,88202.0,0.1133738]
[1745290283202,0.11188,88203.0,88202.0,0.6661738]
[1745290283606,0.0324,88203.0,88202.0,0.6661738]
[1745290283805,0.07948,88203.0,88202.0,0.5528]
[1745290284105,0.3608,88222.0,88214.0,0.1133584]
[1745290284301,0.07965011,88215.0,88214.0,0.1133584]
[1745290285099,0.07973011,88215.0,88214.0,0.3053584]
[1745290285702,0.07973011,88215.0,88214.0,0.3063584]
[1745290285899,0.07973011,88215.0,88214.0,0.31493594]
[1745290286806,0.63414771,88215.0,88214.0,0.3073584]
[1745290287017,0.44131061,88215.0,88214.0,0.3073584]
[1745290287199,0.52079061,88215.0,88214.0,0.3073584]
[1745290287400,0.58399061,88215.0,88214.0,0.3073584]
[1745290287596,0.69734771,88215.0,88214.0,0.3073584]
[1745290287796,0.58399061,88215.0,88214.0,0.3073584]
[1745290288195,0.58399061,88215.0,88214.0,0.1143584]
[1745290288405,0.58399061,88215.0,88214.0,0.1133584]
[1745290288995,0.48399061,88215.0,88214.0,0.1133584]
[1745290289208,0.48399061,88215.0,88214.0,0.3053584]
[1745290289710,0.40494791,88215.0,88214.0,0.3053584]
[1745290290008,0.40494791,88215.0,88214.0,0.3073584]
[1745290291102,0.37384791,88215.0,88214.0,0.3073584]
[1745290291604,0.37380791,88215.0,88214.0,0.3073584]
[1745290292208,0.37380791,88215.0,88214.0,0.31596771]
[1745290294214,0.29436791,88215.0,88214.0,0.31596771]
[1745290294509,0.37380791,88215.0,88214.0,0.31596771]
[1745290298808,0.32726791,88215.0,88214.0,0.31596771]
[1745290299008,0.37380791,88215.0,88214.0,0.31596771]
[1745290299211,0.37380791,88215.0,88214.0,0.34846771]
[1745290300914,0.37372791,88215.0,88214.0,0.34846771]
[1745290301217,0.00025011,88215.0,88214.0,0.34846771]
[1745290301415,0.00017011,88215.0,88214.0,0.34846771]
[1745290301619,0.00025011,88215.0,88214.0,0.70926771]
[1745290301818,0.00025011,88215.0,88214.0,0.8226277]
[1745290302023,0.00019684,88242.0,88219.0,0.0566757]
[1745290302316,0.03209684,88236.0,88232.0,0.0566674]
[1745290302622,0.03209684,88236.0,88234.0,0.1133327]
[1745290302623,0.11244,88235.0,88234.0,0.1133327]
[1745290302923,0.07944,88235.0,88234.0,0.1133327]
[1745290303123,0.07944,88235.0,88234.0,0.41866869]
[1745290303920,0.11104,88235.0,88234.0,0.41866869]
[1745290304320,0.0316,88235.0,88234.0,0.41866869]
[1745290305022,0.0319,88236.0,88235.0,0.1133314]
[1745290305816,0.0319,88236.0,88235.0,0.1123314]
[1745290306120,0.0319,88236.0,88235.0,0.3043314]
[1745290306614,0.07944,88238.0,88237.0,0.1123288]
[1745290306819,0.07944,88238.0,88237.0,0.4731288]
[1745290307211,0.07952,88238.0,88237.0,0.6641288]
[1745290307416,8e-05,88238.0,88237.0,0.7774608]
[1745290307811,0.00108,88238.0,88237.0,0.7774608]
[1745290308418,0.0635,88242.0,88241.0,0.1133237]
[1745290309310,0.0635,88242.0,88241.0,0.3053237]
[1745290309725,0.00516869,88243.0,88242.0,0.1133224]
[1745290309927,0.07932,88247.0,88246.0,0.1699757]
[1745290310111,0.07932,88247.0,88246.0,0.3619757]
[1745290310316,0.3413378,88247.0,88246.0,0.3619757]
[1745290310523,0.07932,88247.0,88246.0,0.3619757]
[1745290311521,0.00010801,88250.0,88249.0,0.1133134]
[1745290311816,0.07932,88250.0,88249.0,0.4741134]
[1745290312020,0.0794,88250.0,88249.0,0.4741134]
[1745290312220,0.0794,88250.0,88249.0,0.6661134]
[1745290314224,0.0324,88258.0,88257.0,0.1133031]
[1745290314417,0.2944178,88258.0,88257.0,0.4741031]
[1745290314622,0.11178,88262.0,88261.0,0.113298]
[1745290314916,0.005,88269.0,88268.0,0.113289]
[1745290315224,0.08428,88269.0,88268.0,0.113289]
[1745290315418,0.4253405,88269.0,88268.0,0.113289]
[1745290315726,0.4253405,88269.0,88268.0,0.474089]
[1745290315914,0.08428,88269.0,88268.0,0.51348011]
[1745290316224,0.08436,88269.0,88268.0,0.70548011]
[1745290316418,0.08636,88269.0,88268.0,0.70548011]
[1745290317023,0.08436,88269.0,88268.0,0.70548011]
[1745290317318,0.00508,88269.0,88268.0,0.70548011]
[1745290317930,0.2670978,88269.0,88268.0,0.67468011]
[1745290319013,0.2670978,88269.0,88268.0,0.71418011]
[1745290319322,0.3461405,88269.0,88268.0,0.305289]
[1745290319530,0.4594282,88269.0,88268.0,0.305289]
[1745290319720,0.3461405,88269.0,88268.0,0.305289]
[1745290320119,0.4594282,88269.0,88268.0,0.113289]
[1745290321021,0.4923282,88269.0,88268.0,0.113289]
[1745290322027,0.0566446,88268.0,88267.0,0.113289]
[1745290322230,0.3015178,88268.0,88267.0,0.151289]
[1745290322527,0.5250495,88268.0,88267.0,0.151289]
[1745290322918,0.4117605,88268.0,88267.0,0.151289]
[1745290323318,0.4910405,88268.0,88267.0,0.151289]
[1745290323527,0.6053295,88268.0,88267.0,0.151289]
[1745290323721,0.6054095,88268.0,88267.0,0.038]
[1745290323922,0.1699424,88265.0,88264.0,0.113294]
[1745290324317,0.4748075,88265.0,88264.0,0.113294]
[1745290324625,0.4848075,88265.0,88264.0,0.113294]
[1745290325616,0.4281605,88265.0,88264.0,0.113294]
[1745290325921,0.3015178,88265.0,88264.0,0.113294]
[1745290326122,0.07936,88268.0,88267.0,0.1132903]
[1745290326423,0.07928,88268.0,88267.0,0.1132903]
[1745290326624,0.07936,88268.0,88267.0,0.1132903]
[1745290327128,0.07936,88268.0,88267.0,0.3052903]
[1745290327323,0.08036,88268.0,88267.0,0.3052903]
[1745290327716,0.07936,88268.0,88267.0,0.3052903]
[1745290327915,0.11986,88268.0,88267.0,0.3052903]
[1745290328119,0.233149,88268.0,88267.0,0.3052903]
[1745290328427,0.15866,88268.0,88267.0,0.3052903]
[1745290329315,0.15866,88268.0,88267.0,0.3062903]
[1745290330122,8e-05,88268.0,88267.0,0.3062903]
[1745290330321,0.005,88269.0,88268.0,0.113289]
[1745290330723,0.005,88269.0,88268.0,0.190489]
[1745290331325,0.005,88269.0,88268.0,0.382489]
[1745290332122,0.005,88269.0,88268.0,0.383489]
[1745290332319,0.07928,88273.0,88272.0,0.1132839]
[1745290333217,0.07928,88273.0,88272.0,0.3824839]
[1745290334718,0.00010801,88278.0,88272.0,0.3824839]
[1745290334719,0.00010801,88278.0,88277.0,0.1132775]
[1745290334920,0.0374,88284.0,88283.0,0.1132698]
[1745290335426,0.0779,88284.0,88283.0,0.1132698]
[1745290335826,0.0779,88284.0,88283.0,0.1921698]
[1745290336027,0.07928,88286.0,88285.0,0.1132672]
[1745290336231,0.07928,88286.0,88285.0,0.4730672]
[1745290336425,0.07928,88286.0,88285.0,0.47288669]
[1745290336636,8e-05,88286.0,88285.0,0.47288669]
[1745290336932,0.0374,88293.0,88292.0,0.1132582]
[1745290337130,0.005,88295.0,88293.0,0.1132569]
[1745290337332,0.2670178,88295.0,88294.0,0.4740557]
[1745290337734,0.26712581,88295.0,88294.0,0.4740557]
[1745290338036,0.2670178,88295.0,88294.0,0.4740557]
[1745290338236,0.2670978,88295.0,88294.0,0.6660557]
[1745290338631,0.1,88300.0,88299.0,0.1132493]
[1745290339335,0.07928,88305.0,88304.0,0.1132428]
[1745290339524,0.07928,88305.0,88304.0,0.4740428]
[1745290340135,0.07928,88305.0,88304.0,0.5482428]
[1745290340634,0.07928,88305.0,88304.0,0.5492428]
[1745290341227,0.00010801,88308.0,88307.0,0.113239]
[1745290341428,0.0393,88310.0,88309.0,0.1132364]
[1745290342031,0.0393,88310.0,88309.0,0.1892364]
[1745290342434,0.0566186,88309.0,88304.0,0.0566199]
[1745290342635,0.07912,88308.0,88307.0,0.113239]
[1745290342832,0.3904378,88308.0,88307.0,0.113239]
[1745290343137,0.6892805,88308.0,88307.0,0.152139]
[1745290343337,0.5331378,88308.0,88307.0,0.16061953]
[1745290343540,0.2712,88308.0,88307.0,0.20111953]
[1745290343835,0.27112,88308.0,88307.0,0.20111953]
[1745290344138,0.005,88321.0,88317.0,0.1132262]
[1745290344339,0.5398,88318.0,88317.0,0.4740262]
[1745290344637,0.8808605,88318.0,88317.0,0.4740262]
[1745290345227,0.8809405,88318.0,88317.0,0.4740262]
[1745290345738,0.8421405,88318.0,88317.0,0.5506262]
[1745290345934,0.8420605,88318.0,88317.0,0.5506262]
[1745290346238,0.7640978,88318.0,88317.0,0.5506262]
[1745290346430,0.50208,88318.0,88317.0,0.5506262]
[1745290347737,0.50108,88318.0,88317.0,0.5526262]
[1745290347948,0.8421405,88318.0,88317.0,0.4760262]
[1745290348437,0.9553654,88318.0,88317.0,0.4760262]
[1745290348642,0.8421405,88318.0,88317.0,0.4760262]
[1745290349137,0.8411405,88318.0,88317.0,0.4760262]
[1745290349331,0.8411405,88318.0,88317.0,0.4770262]
[1745290349530,0.8411405,88318.0,88317.0,0.5170262]
[1745290349739,0.8411405,88318.0,88317.0,0.5140262]
[1745290350038,0.8411405,88318.0,88317.0,0.5170262]
[1745290350838,0.8411405,88318.0,88317.0,0.5160262]
[1745290351034,0.7620978,88318.0,88317.0,0.5170262]
[1745290351535,0.50008,88318.0,88317.0,0.4760262]
[1745290351735,0.50008,88318.0,88317.0,0.5136262]
[1745290352244,0.50008,88318.0,88317.0,0.5126262]
[1745290352444,0.5,88318.0,88317.0,0.5136262]
[1745290352741,0.50008,88318.0,88317.0,0.5146262]
[1745290353141,0.50008,88318.0,88317.0,0.7066262]
[1745290353737,0.50008,88318.0,88317.0,0.7076262]
[1745290354134,0.50008,88318.0,88317.0,0.5156262]
[1745290355341,0.9543654,88318.0,88317.0,0.4780262]
[1745290355544,0.1132313,88313.0,88312.0,0.4114]
[1745290355748,0.1698732,88301.0,88298.0,0.0566243]
[1745290355937,0.1698884,88294.0,88291.0,0.0566292]
[1745290356137,0.1132537,88296.0,88295.0,0.1132531]
[1745290356337,0.3852715,88296.0,88295.0,0.1132531]
[1745290356548,0.4643142,88296.0,88295.0,0.1132531]
[1745290356842,0.4643142,88296.0,88287.0,0.05680181]
[1745290356843,0.1132634,88288.0,88287.0,0.05680181]
[1745290357042,0.1232634,88288.0,88287.0,0.05680181]
[1745290357243,0.0790427,88286.0,88269.0,0.18129473]
[1745290357440,0.1923227,88275.0,88274.0,0.11498044]
[1745290357640,0.2714027,88275.0,88274.0,0.11498044]
[1745290357841,0.2620178,88274.0,88264.0,0.34380432]
[1745290358047,0.0566456,88267.0,88264.0,0.23051322]
[1745290358347,0.0790427,88265.0,88264.0,0.40045362]
[1745290358740,0.3410605,88265.0,88264.0,0.40045362]
[1745290359254,0.4543534,88265.0,88264.0,0.23051322]
[1745290359452,0.3765605,88265.0,88264.0,0.34380742]
[1745290359947,0.4898534,88265.0,88264.0,0.34380742]
[1745290360150,0.6818534,88265.0,88264.0,0.34380742]
[1745290360342,0.5685605,88265.0,88264.0,0.34380742]
[1745290361141,0.3765605,88265.0,88264.0,0.34380742]
[1745290361542,0.3765605,88265.0,88264.0,0.34480742]
[1745290362245,0.3765605,88265.0,88264.0,0.34380742]
[1745290362447,0.3765605,88265.0,88264.0,0.1132942]
[1745290363150,0.5685605,88265.0,88264.0,0.1132942]
[1745290363349,0.6065605,88265.0,88264.0,0.1132942]
[1745290363540,0.7198534,88265.0,88264.0,0.1132942]
[1745290363742,0.6856805,88265.0,88264.0,0.1132942]
[1745290363942,0.7989734,88265.0,88264.0,0.1132942]
[1745290364142,0.6069734,88265.0,88264.0,0.1132942]
[1745290364450,0.4936805,88265.0,88264.0,0.1132942]
[1745290364848,0.1132954,88263.0,88262.0,0.0566483]
[1745290365052,0.1923381,88263.0,88262.0,0.0566483]
[1745290365254,0.3410605,88263.0,88262.0,0.0566483]
[1745290365550,0.5286559,88263.0,88262.0,0.0566483]
[1745290366152,0.1133019,88258.0,88257.0,0.00016991]
[1745290366346,0.1923446,88258.0,88257.0,0.11347301]
[1745290366545,0.4543624,88258.0,88257.0,0.11347301]
[1745290366846,0.3410605,88258.0,88257.0,0.11347301]
[1745290367149,0.3797605,88258.0,88257.0,0.11347301]
[1745290367350,0.5289624,88258.0,88257.0,0.11347301]
[1745290367550,0.5290424,88258.0,88257.0,0.11347301]
[1745290372655,0.5290424,88258.0,88251.0,0.0381]
[1745290372656,0.0566547,88253.0,88239.0,0.00169994]
[1745290372953,0.05666,88244.0,88240.0,0.4564624]
[1745290373157,0.1700079,88231.0,88230.0,0.1133374]
[1745290373552,0.3550866,88231.0,88230.0,0.1133374]
[1745290373954,0.1133391,88229.0,88228.0,0.0760201]
[1745290374254,0.1923818,88229.0,88228.0,0.01935]
[1745290374453,0.4543996,88229.0,88228.0,0.1326904]
[1745290374648,0.5282996,88229.0,88228.0,0.1326904]
[1745290374853,0.6072996,88229.0,88228.0,0.1326904]
[1745290375555,0.6072996,88229.0,88228.0,0.1376904]
[1745290376057,0.6072996,88229.0,88228.0,0.02435]
[1745290376646,0.1133468,88223.0,88222.0,0.00017001]
[1745290376951,0.1923895,88223.0,88222.0,0.00017001]
[1745290377157,0.4544073,88223.0,88222.0,0.00017001]
[1745290377555,0.5301073,88223.0,88222.0,0.00017001]
[1745290377857,0.5301073,88223.0,88222.0,0.00317001]
[1745290378057,0.7221073,88223.0,88222.0,0.00617001]
[1745290379063,0.7221073,88223.0,88222.0,0.11951811]
[1745290379253,0.7221073,88223.0,88222.0,0.00617001]
[1745290380661,0.7221073,88223.0,88222.0,0.11951811]
[1745290381254,0.7221073,88223.0,88222.0,0.00617001]
[1745290382157,0.7221073,88223.0,88213.0,0.4174792]
[1745290382158,0.0790427,88214.0,88204.0,0.0391]
[1745290382362,0.1133699,88207.0,88206.0,0.1133643]
[1745290382552,0.1133699,88207.0,88200.0,0.1]
[1745290382553,0.1133751,88201.0,88200.0,0.1]
[1745290382754,0.2024178,88201.0,88200.0,0.1]
[1745290382948,0.8278156,88201.0,88200.0,0.1]
[1745290383154,0.8278156,88201.0,88190.0,0.00510259]
[1745290383155,0.1133854,88193.0,88192.0,0.00017001]
[1745290383373,0.7031854,88193.0,88192.0,0.00017001]
[1745290383658,0.7031854,88193.0,88190.0,0.00510259]
[1745290383659,0.1133879,88191.0,88190.0,0.00510259]
[1745290383962,0.1134085,88175.0,88164.0,0.0051041]
[1745290384164,1.2674205,88175.0,88170.0,8e-05]
[1745290384459,1.5294383,88175.0,88164.0,0.0051041]
[1745290384664,1.0626578,88175.0,88174.0,0.1134898]
[1745290384963,1.0627378,88175.0,88174.0,0.1134898]
[1745290385260,1.0627378,88175.0,88174.0,0.3054898]
[1745290385453,1.0637378,88175.0,88174.0,0.3054898]
[1745290385861,1.0637378,88175.0,88174.0,0.3806898]
[1745290386859,0.3420578,88175.0,88174.0,0.3806898]
[1745290387067,0.3431378,88175.0,88174.0,0.3806898]
[1745290387367,0.3430578,88175.0,88174.0,0.3806898]
[1745290387567,0.3431378,88175.0,88174.0,0.3806898]
[1745290387767,0.3421378,88175.0,88174.0,0.3806898]
[1745290389672,0.4555463,88175.0,88174.0,0.3806898]
[1745290389961,0.4555463,88175.0,88174.0,0.3054898]
[1745290390157,0.4555463,88175.0,88174.0,0.1134898]
[1745290390359,0.4545463,88175.0,88174.0,0.1134898]
[1745290390559,0.5315463,88175.0,88174.0,0.1134898]
[1745290390978,0.5305463,88175.0,88174.0,8e-05]
[1745290391273,0.5315463,88175.0,88174.0,0.1134898]
[1745290392067,0.5305463,88175.0,88174.0,0.1134898]
[1745290392269,0.6415463,88175.0,88174.0,8e-05]
[1745290392464,0.5315463,88175.0,88174.0,8e-05]
[1745290393068,0.5315463,88175.0,88174.0,0.1134898]
[1745290393464,0.3431378,88175.0,88174.0,0.1134898]
[1745290393665,0.2640978,88175.0,88174.0,0.4742898]
[1745290393966,1.64232,88187.0,88182.0,0.1133995]
[1745290394159,0.07904,88185.0,88182.0,0.1133995]
[1745290394468,0.07904,88185.0,88184.0,0.1133969]
[1745290394771,0.01974,88185.0,88184.0,0.1133969]
[1745290394972,0.0362,88204.0,88203.0,0.1133725]
[1745290395270,0.07904,88204.0,88203.0,0.1133725]
[1745290395472,0.1133789,88198.0,88197.0,0.1303895]
[1745290395662,0.4741789,88198.0,88197.0,0.1303895]
[1745290395862,0.7361967,88198.0,88197.0,0.1303895]
[1745290396259,0.6228178,88198.0,88197.0,0.1303895]
[1745290397171,0.6248178,88198.0,88197.0,0.1303895]
[1745290397471,0.6238178,88198.0,88197.0,0.1303895]
[1745290397674,0.6976178,88198.0,88197.0,0.1303895]
[1745290398772,0.6238178,88198.0,88197.0,0.1303895]
[1745290399276,0.6238978,88198.0,88197.0,0.1303895]
[1745290399669,0.2630978,88198.0,88197.0,0.1303895]
[1745290399868,0.6238978,88198.0,88197.0,0.1303895]
[1745290400064,0.6248978,88198.0,88197.0,0.1303895]
[1745290400671,0.6238978,88198.0,88197.0,0.1303895]
[1745290402777,0.6228978,88198.0,88197.0,0.1303895]
[1745290403275,0.7018178,88198.0,88197.0,0.1303895]
[1745290403474,0.7028178,88198.0,88197.0,0.1303895]
[1745290407172,0.7018178,88198.0,88197.0,0.1303895]
[1745290407990,0.7018178,88198.0,88197.0,0.113377]
[1745290407991,0.8151967,88198.0,88197.0,0.113377]
[1745290408166,0.7018178,88198.0,88197.0,0.113377]
[1745290408372,0.1133815,88196.0,88195.0,0.00017012]
[1745290408576,0.3367178,88197.0,88196.0,0.1133815]
[1745290408769,0.2978178,88197.0,88196.0,0.1133815]
[1745290408977,0.2978178,88197.0,88196.0,0.1882815]
[1745290410384,0.2998178,88197.0,88196.0,0.1882815]
[1745290410876,0.2988178,88197.0,88196.0,0.1882815]
[1745290411070,0.2978178,88197.0,88196.0,0.1882815]
[1745290411285,0.2988178,88197.0,88196.0,0.1882815]
[1745290412080,0.3383178,88197.0,88196.0,0.1495815]
[1745290412586,0.3393178,88197.0,88196.0,0.1495815]
[1745290412887,0.3383178,88197.0,88196.0,0.1495815]
[1745290413284,0.3393178,88197.0,88196.0,0.1495815]
[1745290413884,0.3383178,88197.0,88196.0,0.1495815]
[1745290414191,0.3393178,88197.0,88196.0,0.1495815]
[1745290414389,0.3393178,88197.0,88196.0,0.1872815]
[1745290415081,0.3383178,88197.0,88196.0,0.1872815]
[1745290415286,0.3393178,88197.0,88196.0,0.1872815]
[1745290415587,0.3383178,88197.0,88196.0,0.1872815]
[1745290415777,0.3393178,88197.0,88196.0,0.1872815]
[1745290415983,0.3393178,88197.0,88196.0,0.1495815]
[1745290416187,0.3383178,88197.0,88196.0,0.1495815]
[1745290416685,0.3393178,88197.0,88196.0,0.1495815]
[1745290417185,0.3383178,88197.0,88196.0,0.1495815]
[1745290417383,0.3393178,88197.0,88196.0,0.1495815]
[1745290418374,0.3393178,88197.0,88196.0,0.1849815]
[1745290421388,0.452698,88197.0,88196.0,0.1849815]
[1745290421683,0.3393178,88197.0,88196.0,0.1849815]
[1745290422077,0.3383178,88197.0,88196.0,0.1495815]
[1745290422283,0.3393178,88197.0,88196.0,0.1495815]
[1745290423683,0.452698,88197.0,88196.0,0.1495815]
[1745290424586,0.3393178,88197.0,88196.0,0.1495815]
[1745290424789,0.452698,88197.0,88196.0,0.1495815]
[1745290425088,0.1133815,88196.0,88195.0,0.00017012]
[1745290425289,0.1134085,88175.0,88174.0,8e-05]
[1745290425593,0.7431285,88175.0,88174.0,8e-05]
[1745290425784,1.0051463,88175.0,88174.0,8e-05]
[1745290426184,1.0778463,88175.0,88174.0,0.1134898]
[1745290426385,1.0778463,88175.0,88174.0,8e-05]
[1745290427083,1.0788463,88175.0,88174.0,8e-05]
[1745290427285,1.20365751,88175.0,88174.0,8e-05]
[1745290427485,1.20365751,88175.0,88174.0,0.00108]
[1745290428092,1.39565751,88175.0,88174.0,0.00108]
[1745290428483,1.40402922,88175.0,88174.0,0.00108]
[1745290429785,1.28224551,88175.0,88174.0,0.00108]
[1745290430092,1.01140551,88175.0,88174.0,0.1144898]
[1745290430291,1.09036551,88175.0,88174.0,0.00108]
[1745290430497,1.09028551,88175.0,88174.0,0.00108]
[1745290430796,1.09036551,88175.0,88174.0,0.00108]
[1745290431886,1.01140551,88175.0,88174.0,0.00108]
[1745290432193,1.09036551,88175.0,88174.0,0.00108]
[1745290434494,1.09036551,88175.0,88174.0,0.1144898]
[1745290434692,1.09036551,88175.0,88174.0,0.00108]
[1745290439296,1.20377751,88175.0,88174.0,0.00108]
[1745290440083,1.39577751,88175.0,88174.0,0.00108]
[1745290440689,1.40429088,88175.0,88174.0,0.00108]
[1745290441990,1.39577751,88175.0,88174.0,0.00108]
[1745290442184,1.01377751,88175.0,88174.0,0.00108]
[1745290442394,0.8888863,88175.0,88174.0,0.1503898]
[1745290442597,0.90022785,88175.0,88174.0,0.03698]
[1745290443089,0.99022785,88175.0,88174.0,0.03698]
[1745290443588,0.99022785,88175.0,88174.0,0.00108]
[1745290445089,1.10363985,88175.0,88174.0,0.00108]
[1745290447689,1.10263985,88175.0,88174.0,0.00108]
[1745290447892,1.10563985,88175.0,88174.0,0.00208]
[1745290448096,1.10563985,88175.0,88174.0,0.00108]
[1745290448299,1.10763985,88175.0,88174.0,0.00108]
[1745290448593,1.10663985,88175.0,88174.0,0.00108]
[1745290448996,1.11530448,88175.0,88174.0,0.00108]
[1745290450396,1.11430448,88175.0,88174.0,0.00108]
[1745290450694,1.11330448,88175.0,88174.0,0.00108]
[1745290450899,1.11530448,88175.0,88174.0,0.00108]
[1745290451601,1.11630448,88175.0,88174.0,0.00208]
[1745290451797,1.00281248,88175.0,88174.0,0.00208]
[1745290452193,1.00277248,88175.0,88174.0,0.00208]
[1745290453085,0.99877248,88175.0,88174.0,8e-05]
[1745290453286,0.99977248,88175.0,88174.0,0.00108]
[1745290455002,1.36057248,88175.0,88174.0,0.00108]
[1745290456102,1.35957248,88175.0,88174.0,0.00108]
[1745290456293,1.36057248,88175.0,88174.0,0.00108]
[1745290456899,1.35957248,88175.0,88174.0,0.00108]
[1745290457094,1.36057248,88175.0,88174.0,0.00108]
[1745290457696,1.35957248,88175.0,88174.0,0.00108]
[1745290457994,1.36057248,88175.0,88174.0,0.00108]
[1745290461101,1.35957248,88175.0,88174.0,8e-05]
[1745290461297,1.36057248,88175.0,88174.0,0.00108]
[1745290461699,1.36057248,88175.0,88174.0,0.1144898]
[1745290461700,1.2679463,88175.0,88174.0,0.1144898]
[1745290461904,0.08084,88175.0,88174.0,0.1144898]
[1745290462095,0.08092,88175.0,88174.0,0.5564898]
[1745290462403,0.08084,88175.0,88174.0,0.5564898]
[1745290462605,0.08092,88175.0,88174.0,0.5564898]
[1745290462898,0.08092,88175.0,88174.0,0.3064898]
[1745290463099,0.3429378,88175.0,88174.0,0.3064898]
[1745290463291,0.3419378,88175.0,88174.0,0.3074898]
[1745290463607,0.3429378,88175.0,88174.0,0.3084898]
[1745290464106,0.3419378,88175.0,88174.0,0.3074898]
[1745290464304,0.3429378,88175.0,88174.0,0.3084898]
[1745290465592,0.3419378,88175.0,88174.0,0.3074898]
[1745290465798,0.3429378,88175.0,88174.0,0.3094898]
[1745290466102,0.4553463,88175.0,88174.0,0.3084898]
[1745290467601,0.4553463,88175.0,88174.0,0.3074898]
[1745290467805,0.4553463,88175.0,88174.0,0.3084898]
[1745290468101,0.3419378,88175.0,88174.0,0.3084898]
[1745290468506,0.4553463,88175.0,88174.0,0.3084898]
[1745290469101,0.4553463,88175.0,88174.0,0.3074898]
[1745290469840,0.4543463,88175.0,88174.0,0.3064898]
[1745290470019,0.4553463,88175.0,88174.0,0.3074898]
[1745290470226,0.4553463,88175.0,88174.0,0.19408]
[1745290470227,0.1933285,88175.0,88174.0,0.19408]
[1745290470438,0.4553463,88175.0,88174.0,0.19408]
[1745290470740,0.5553463,88175.0,88174.0,0.19408]
[1745290470926,0.4553463,88175.0,88174.0,0.19408]
[1745290471115,0.5453463,88175.0,88174.0,0.00208]
[1745290472209,0.5653463,88175.0,88174.0,0.00208]
[1745290473302,0.5643463,88175.0,88174.0,0.00108]
[1745290473501,0.5453463,88175.0,88174.0,0.00208]
[1745290473699,0.5463463,88175.0,88174.0,0.00108]
[1745290474815,0.66817137,88175.0,88174.0,0.00108]
[1745290475006,0.66817137,88175.0,88174.0,8e-05]
[1745290475306,0.86017137,88175.0,88174.0,0.00108]
[1745290475698,1.58077137,88175.0,88174.0,0.00108]
[1745290475906,1.58177137,88175.0,88174.0,0.00108]
[1745290476206,1.38977137,88175.0,88174.0,0.00108]
[1745290477010,1.31405937,88175.0,88174.0,0.00108]
[1745290477310,1.42747137,88175.0,88174.0,0.00108]
[1745290481010,1.4273364,88175.0,88174.0,0.00108]
[1745290481209,1.4273364,88175.0,88174.0,0.001]
[1745290481914,1.4273364,88175.0,88174.0,0.00108]
[1745290486004,1.3139244,88175.0,88174.0,0.00108]
[1745290488416,1.4273364,88175.0,88174.0,0.00108]
[1745290488616,1.8368364,88175.0,88174.0,0.00108]
[1745290488919,1.8368364,88175.0,88138.0,0.0051056]
[1745290488920,0.113433,88156.0,88138.0,0.0051056]
[1745290489114,0.113442,88149.0,88148.0,0.0359]
[1745290489313,0.213442,88149.0,88148.0,0.0359]
[1745290489517,0.4754598,88149.0,88148.0,0.03598]
[1745290490021,0.5122598,88149.0,88148.0,0.03598]
[1745290491413,0.5132598,88149.0,88148.0,0.03698]
[1745290491819,0.07972,88149.0,88148.0,0.1504233]
[1745290492123,0.193162,88149.0,88148.0,0.3444233]
[1745290492424,0.194162,88149.0,88148.0,0.3444233]
[1745290493523,0.08072,88149.0,88148.0,0.3444233]
[1745290493716,0.07972,88149.0,88148.0,0.3414233]
[1745290493918,0.08072,88149.0,88148.0,0.3444233]
[1745290494523,0.08072,88149.0,88148.0,0.45786729]
[1745290495023,0.08072,88149.0,88148.0,0.3454233]
[1745290496920,0.0786,88153.0,88152.0,0.169157]
[1745290497221,0.0786,88153.0,88152.0,0.281597]
[1745290497411,0.0786,88153.0,88152.0,0.531597]
[1745290497617,0.0786,88153.0,88152.0,0.167157]
[1745290497618,0.1920368,88153.0,88152.0,0.167157]
[1745290497817,0.1920368,88153.0,88152.0,0.166157]
[1745290498019,0.1920368,88153.0,88152.0,0.0527189]
[1745290498318,0.1930368,88153.0,88152.0,0.2477189]
[1745290498522,0.1940368,88153.0,88152.0,0.2487189]
[1745290498721,0.1930368,88153.0,88152.0,0.2457989]
[1745290498915,0.1940368,88153.0,88152.0,0.3201989]
[1745290500018,0.0796,88153.0,88152.0,0.3191989]
[1745290500625,0.1940368,88153.0,88152.0,0.3231989]
[1745290500821,0.1930368,88153.0,88152.0,0.3201989]
[1745290501121,0.0806,88153.0,88152.0,0.3241989]
[1745290501514,0.0796,88153.0,88152.0,0.3201989]
[1745290501719,0.0806,88153.0,88152.0,0.3241989]
[1745290503421,0.0796,88153.0,88152.0,0.3201989]
[1745290503621,0.0806,88153.0,88152.0,0.3241989]
[1745290505822,0.1940368,88153.0,88152.0,0.3241189]
[1745290506024,0.1940368,88153.0,88152.0,0.3241989]
[1745290506216,0.1930368,88153.0,88152.0,0.3201989]
[1745290506422,0.1940368,88153.0,88152.0,0.3231989]
[1745290507118,0.1940368,88153.0,88152.0,0.19608]
[1745290507119,0.4550546,88153.0,88152.0,0.19608]
[1745290507426,0.4550546,88153.0,88152.0,0.195]
[1745290507628,0.4560546,88153.0,88152.0,0.3115181]
[1745290508326,0.4560546,88153.0,88152.0,0.00608]
[1745290508527,0.4560546,88153.0,88152.0,0.1195181]
[1745290509317,0.4550546,88153.0,88152.0,0.00308]
[1745290509522,0.4560546,88153.0,88152.0,0.00708]
[1745290509718,0.3426178,88153.0,88152.0,0.1205181]
[1745290510222,0.3426178,88153.0,88152.0,0.3125181]
[1745290510418,0.3426178,88153.0,88152.0,0.3891181]
[1745290510626,0.3830178,88153.0,88152.0,0.3891181]
[1745290511125,0.4964546,88153.0,88152.0,0.3891181]
[1745290512522,0.4178546,88153.0,88152.0,0.3891181]
[1745290512722,0.4964546,88153.0,88152.0,0.3891181]
[1745290513129,0.3830178,88153.0,88152.0,0.3891181]
[1745290513425,0.0806,88153.0,88152.0,0.5025581]
[1745290513817,0.002,88153.0,88152.0,0.5025581]
[1745290514217,0.0786,88155.0,88154.0,0.1701527]
[1745290514422,0.0786,88155.0,88154.0,0.2475527]
[1745290514621,0.0786,88155.0,88154.0,0.3609887]
[1745290515341,0.00017012,88157.0,88154.0,0.3609887]
[1745290515342,0.00017012,88157.0,88156.0,0.113433]
[1745290515628,0.00017012,88157.0,88156.0,0.112433]
[1745290515829,0.00017012,88157.0,88156.0,0.225869]
[1745290516130,0.00017012,88157.0,88156.0,0.417869]
[1745290516431,0.00017012,88157.0,88156.0,0.416869]
[1745290516632,0.00117012,88157.0,88156.0,0.420869]
[1745290517224,0.00217012,88157.0,88156.0,0.422869]
[1745290517624,0.00217012,88157.0,88156.0,0.42604183]
[1745290522232,0.00217012,88157.0,88156.0,0.31260583]
[1745290522925,0.73841962,88157.0,88156.0,0.31260583]